Cogmind - Beta 13 X1 @@@ ROGUE MODE // 2023.09.09 @ 16:01:37 Player: VR-DUX Result: Destroyed by Y-72 Warden with Railgun Performance ------------- Evolutions (8) 4000 Regions Visited (28) 5600 Robots Destroyed (125) 625 Value Destroyed (3285) 3285 Prototype IDs (62) 1240 Alien Tech Used (1) 200 Bonus (6554) 6554 TOTAL SCORE: 21504 Bonus ------- High Alert Combat Kills 450 Follower Combat Kills 885 Met Data Miner 300 Met Imprinter 300 Met Zhirov 300 Met Warlord at Base 500 MAIN.C Attacked Warlord 500 Met Warlord at Research 2000 Invited to Help at Command 2000 Scanned by Researcher 500 Friendly Fire -1181 Cogmind --------- Core Integrity 0/1450 Matter 300/300 Energy 598/600 System Corruption 8% Temperature Cool (9) Movement Core (50) Location -2/Research Parts ------- > --- POWER (2) -------- (None) > --- PROPULSION (8) --- (None) > --- UTILITY (11) ----- Advanced Energy Well Advanced Signal Interpreter Advanced Hacking Suite > --- WEAPON (2) ------- (None) > --- INVENTORY (5) ---- Fission Core Neutrino Core Enhanced Quantum Rifle Heavy Quantum Rifle Nanosword Peak State ------------ > --- POWER ------------ Micro Antimatter Reactor Light Quantum Reactor > --- PROPULSION ------- Medium Treads Medium Treads Improved Medium Treads Biometal Medium Treads Biometal Medium Treads Biometal Medium Treads Experimental Biometal Heavy Treads > --- UTILITY ---------- Huge Storage Unit Advanced Energy Well Advanced Weight Redist. System Advanced Sensor Array Advanced Signal Interpreter Advanced Targeting Computer Experimental Core Analyzer Advanced Hacking Suite Advanced Hacking Suite System Mapper Advanced System Shield > --- WEAPON ----------- Enhanced Nova Cannon Hellfire Missile Launcher > --- INVENTORY -------- Micro Fission Core Micro Fission Core Antimatter Reactor Light Quantum Reactor Large Storage Unit Advanced Visual Processing Unit Advanced Signal Interpreter Advanced Targeting Computer Stasis Canceller Improved Transmission Jammer Advanced Component Analysis Suite Transdimensional Reconstructor Heavy Quantum Rifle Vortex Cannon Enhanced Nova Cannon Null Cannon KE Penetrator KE Penetrator Bore Cannon Nanosword Nanosword [Rating: 169] Favorites ----------- Power Micro Fission Core Engine Light Deuterium Engine Power Core Micro Fission Core Reactor Antimatter Reactor Propulsion Improved Cesium-ion Thruster Treads Light Treads Leg Improved Aluminum Leg Wheel Compact Wheel Hover Unit Improved Linear Gravjet Flight Unit Improved Cesium-ion Thruster Utility Structural Scanner Device Structural Scanner Storage Huge Storage Unit Processor Improved Signal Interpreter Hackware Advanced Hacking Suite Protection Propulsion Shielding Weapon EM Pulse Gun Energy Gun EM Pulse Gun Energy Cannon Enhanced Nova Cannon Ballistic Gun KE Penetrator Ballistic Cannon Gauss Cannon Launcher Mini Grenade Launcher Impact Weapon Powered Hammer Slashing Weapon Makeshift Axe Build | -11 -10 -10 -10 -9 -8 -7 -7 -7 -7 -6 -6 -6 -6 -6 -5 -5 -5 -5 -5 -4 -4 -4 -4 -4 -3 -3 -3 -2 ------- Run | Jun Mat Min Exi Min Mat Fac Low Low Zio Pro Fac Low Low Dat Pro Fac Upp Upp Zhi Pro Fac Upp Upp War Pro Res Tes Res Slots Evolved 16 | . . . . . 4 2 . . . . 2 . . . . 2 . . . . 2 . . . . 2 . 2 Power 1 | . . . . . . . . . . . . . . . . . . . . . 1 . . . . . . . Propulsion 6 | . . . . . 2 1 . . . . 1 . . . . . . . . . 1 . . . . . . 1 Utility 9 | . . . . . 2 1 . . . . 1 . . . . 2 . . . . . . . . . 2 . 1 Weapon . | . . . . . . . . . . . . . . . . . . . . . . . . . . . . . Parts Attached 277 | 1 22 9 . 12 33 31 2 5 5 4 15 . 4 2 2 11 4 1 19 1 9 2 . 18 . 10 9 46 Power 23 | . 1 1 . . 3 . . . 1 . . . . . . 1 3 . . . 2 . . 3 . 1 . 7 Engine 8 | . 1 1 . . 2 . . . 1 . . . . . . 1 1 . . . 1 . . . . . . . Core 11 | . . . . . 1 . . . . . . . . . . . 2 . . . 1 . . 2 . 1 . 4 Reactor 4 | . . . . . . . . . . . . . . . . . . . . . . . . 1 . . . 3 Propulsion 90 | . 9 2 . 4 12 15 . . . . 4 . . . . . . 1 9 . 3 . . 5 . . 1 25 Treads 40 | . 4 . . 2 10 . . . . . . . . . . . . . . . . . . . . . . 24 Leg 4 | . 2 . . . 2 . . . . . . . . . . . . . . . . . . . . . . . Wheel 7 | . 3 2 . 2 . . . . . . . . . . . . . . . . . . . . . . . . Hover 2 | . . . . . . . . . . . . . . . . . . . 1 . . . . . . . . 1 Flight 37 | . . . . . . 15 . . . . 4 . . . . . . 1 8 . 3 . . 5 . . 1 . Utility 78 | 1 4 . . 3 6 12 . . . . 11 . 4 . . 6 . . 5 . 2 . . 6 . 7 4 7 Device 36 | 1 2 . . 3 4 6 . . . . 1 . 3 . . 4 . . 2 . . . . 3 . 2 3 2 Storage 10 | . 1 . . . . 1 . . . . 4 . . . . . . . 1 . . . . . . 1 . 2 Processor 8 | . 1 . . . 1 1 . . . . . . . . . . . . . . 1 . . 2 . . . 2 Hackware 6 | . . . . . 1 . . . . . 1 . . . . 1 . . . . 1 . . . . 2 . . Protection 18 | . . . . . . 4 . . . . 5 . 1 . . 1 . . 2 . . . . 1 . 2 1 1 Artifact . | . . . . . . . . . . . . . . . . . . . . . . . . . . . . . Weapon 86 | . 8 6 . 5 12 4 2 5 4 4 . . . 2 2 4 1 . 5 1 2 2 . 4 . 2 4 7 Energy Gun 9 | . 3 2 . 1 1 . . . . . . . . . . . . . . . . . . 1 . . 1 . Energy Cannon 5 | . . . . . . . . . . . . . . . . . . . . . . . . 1 . . . 4 Ballistic Gun 2 | . . . . . 1 . . . . . . . . . . . . . . . . . . . . . . 1 Ballistic Cannon 19 | . . . . . . 1 1 2 . 2 . . . . 1 2 1 . 4 . 1 1 . 1 . 1 1 . Launcher 32 | . 2 3 . 3 6 1 1 2 1 2 . . . 1 1 2 . . . 1 1 1 . 1 . 1 . 2 Special Weapon . | . . . . . . . . . . . . . . . . . . . . . . . . . . . . . Impact Weapon 11 | . 3 1 . 1 4 1 . . . . . . . . . . . . 1 . . . . . . . . . Slashing Weapon 8 | . . . . . . 1 . 1 3 . . . . 1 . . . . . . . . . . . . 2 . Piercing Weapon . | . . . . . . . . . . . . . . . . . . . . . . . . . . . . . Special Melee Weapon . | . . . . . . . . . . . . . . . . . . . . . . . . . . . . . Unidentified Prototypes 19 | . . . . 1 . 3 . . . . . . 1 . . . . . 5 . . . . 7 . 1 1 . Parts Lost 43 | . . 2 . . 1 2 . . . . . . . . . 1 . . . . . . . . . 2 4 31 Power 5 | . . 1 . . . . . . . . . . . . . 1 . . . . . . . . . . . 3 Propulsion 21 | . . 1 . . 1 1 . . . . . . . . . . . . . . . . . . . . 2 16 Utility 10 | . . . . . . . . . . . . . . . . . . . . . . . . . . 2 2 6 Weapon 7 | . . . . . . 1 . . . . . . . . . . . . . . . . . . . . . 6 Highest Loss Streak 20 | . . 1 . . 1 2 . . . . . . . . . 1 . . . . . . . . . 2 3 20 To Critical Strikes 3 | . . . . . . . . . . . . . . . . . . . . . . . . . . . . 3 Average Slot Usage (%) 97 | . 99 99 100 100 98 98 100 100 100 100 100 100 99 100 100 99 100 100 94 100 100 100 100 97 94 93 89 87 Engine 6 | . 14 14 14 14 6 7 7 7 7 7 6 6 6 6 6 5 2 . . . 1 . . . . . . . Core 2 | . . . . . 2 . . . . . . . . . . . 2 5 5 5 8 10 10 9 10 9 9 2 Treads 9 | . 18 . . 5 28 . . . . . . . . . . . . . . . . . . . . . . 24 Wheel 5 | . 9 27 28 22 3 . . . . . . . . . . . . . . . . . . . . . . . Flight 16 | . . . . . . 36 38 38 38 38 40 40 40 40 40 35 35 35 35 35 36 36 36 34 31 28 25 1 Device 12 | . 14 14 14 14 10 17 15 15 15 15 13 13 12 13 13 19 17 17 17 17 15 15 15 10 10 13 7 8 Storage 9 | . 14 14 14 14 9 7 7 7 7 7 6 6 6 6 6 5 5 5 7 5 5 5 5 5 5 4 9 8 Processor 5 | . . . . . 9 6 7 7 7 7 6 6 6 6 6 5 5 5 5 5 5 5 5 5 5 4 4 10 Hackware 6 | . . . . . 7 1 . . . . 5 6 6 6 6 8 11 11 11 11 13 15 15 15 15 19 19 15 Protection 2 | . . . . . . 4 7 7 7 7 6 6 6 6 6 5 5 5 2 5 1 . . 4 5 4 4 . Energy Gun 6 | . 21 16 28 16 5 . . . . . . . . . . . . . . . . . . . . . . . Launcher 3 | . . 6 . 10 7 2 3 1 . 2 6 6 6 3 5 5 2 . . . 4 4 5 4 5 . . 1 Impact Weapon 2 | . 6 4 . 1 1 . . . . . . . . . . . . . 1 5 5 5 5 5 5 4 1 . Slashing Weapon 2 | . . . . . . 6 7 7 7 7 6 6 6 9 6 5 5 5 3 . . . . . . . 4 1 Naked Turns . | . . . . . . . . . . . . . . . . . . . . . . . . . . . . . Heaviest Build 152 | 13 90 92 90 97 93 90 28 28 28 28 24 22 22 23 21 23 29 29 31 31 30 27 27 29 29 44 44 152 Greatest Support 285 | 20 40 32 32 32 92 92 28 28 28 28 28 24 24 24 24 24 29 30 31 31 32 32 32 45 44 44 44 285 Greatest Overweight (x) 29 | . 29 5 2 5 2 1 . . . . . . . . . . . . . . . . . . . . 1 1 Average Overweight (x) . | . 2 2 2 2 . . . . . . . . . . . . . . . . . . . . . . . . Largest Inventory Capacity 25 | 8 25 25 25 25 25 25 10 10 10 10 15 10 10 10 10 10 10 10 10 10 10 10 10 10 10 10 10 25 Average Capacity 17 | 8 24 25 25 25 25 10 10 10 10 10 10 10 10 10 10 10 10 10 10 10 10 10 10 10 10 10 10 23 Most Carried 25 | 6 25 25 25 25 25 25 10 10 10 10 10 10 10 10 10 10 10 10 10 10 10 10 10 10 10 10 10 25 Average Carried 16 | 6 21 23 24 24 24 10 9 10 9 10 9 10 10 10 10 9 10 10 9 10 9 10 10 9 10 9 8 20 Final Capacity 25 | 8 25 25 25 25 25 10 10 10 10 10 10 10 10 10 10 10 10 10 10 10 10 10 10 10 10 10 10 5 Final Carried 25 | 6 25 23 25 25 25 10 10 10 10 10 10 10 10 10 10 10 10 10 10 10 10 10 10 10 10 7 8 5 Class Distribution -------------------- 33% | Mutant 21% | Scout 13% | Hacker-Ninja 9% | Scavenger-Mutant 8% | Wizard-Mutant 5% | Hacker-Scout 3% | Wizard-Sprinter Dominant Class ---------------- Mutant | -10/Materials Mutant | -10/Mines Mutant | -10/Exiles Mutant | -9/Mines Scavenger-Mutant | -8/Materials Scout | -7/Factory Scout | -7/Lower Caves Scout | -7/Lower Caves Scout | -7/Zion Scout | -6/Proximity Caves Scout | -6/Factory Scout | -6/Lower Caves Scout | -6/Lower Caves Scout | -6/Data Miner Scout | -5/Proximity Caves Hacker-Ninja | -5/Factory Hacker-Ninja | -5/Upper Caves Hacker-Ninja | -5/Upper Caves Hacker-Ninja | -5/Zhirov Hacker-Ninja | -4/Proximity Caves Hacker-Ninja | -4/Factory Hacker-Ninja | -4/Upper Caves Hacker-Ninja | -4/Upper Caves Hacker-Scout | -4/Warlord Hacker-Scout | -3/Proximity Caves Hacker-Ninja | -3/Research Wizard-Sprinter | -3/Testing Wizard-Mutant | -2/Research Resources | -11 -10 -10 -10 -9 -8 -7 -7 -7 -7 -6 -6 -6 -6 -6 -5 -5 -5 -5 -5 -4 -4 -4 -4 -4 -3 -3 -3 -2 ----------- Run | Jun Mat Min Exi Min Mat Fac Low Low Zio Pro Fac Low Low Dat Pro Fac Upp Upp Zhi Pro Fac Upp Upp War Pro Res Tes Res Matter Collected 4590 | 210 447 135 . 103 736 305 156 15 72 . 298 . 40 . 32 49 134 10 190 10 80 61 . 180 . 40 250 1037 Remotely 70 | . . . . . 70 . . . . . . . . . . . . . . . . . . . . . . . Salvage Created 5299 | 144 714 370 . 4 960 263 130 28 . . 402 . 19 . . 137 288 . 334 . 341 94 . . 37 262 230 542 Parts 223 | 13 38 17 . . 78 9 7 . . . 16 . . . . 2 7 . . . 2 . . . . 8 7 19 Haulers Intercepted 5 | . 2 . . . . 2 . . . . . . . . . . . . . . . . . . . . . 1 Recyclers Shooed 2 | . . . . . 1 . . . . . 1 . . . . . . . . . . . . . . . . . Parts Field Recycled . | . . . . . . . . . . . . . . . . . . . . . . . . . . . . . Retrieved Matter . | . . . . . . . . . . . . . . . . . . . . . . . . . . . . . Parts Self-Destructed 6 | . . . . . . . 1 . . . . . . . 4 . 1 . . . . . . . . . . . Prevented 1 | . . . . . . . . . . . . . 1 . . . . . . . . . . . . . . . Kills | -11 -10 -10 -10 -9 -8 -7 -7 -7 -7 -6 -6 -6 -6 -6 -5 -5 -5 -5 -5 -4 -4 -4 -4 -4 -3 -3 -3 -2 ------- Run | Jun Mat Min Exi Min Mat Fac Low Low Zio Pro Fac Low Low Dat Pro Fac Upp Upp Zhi Pro Fac Upp Upp War Pro Res Tes Res Combat Hostiles Destroyed 67 | . 14 10 . 1 20 . 1 . . . . . . . . . . . . . . . . . . 3 . 18 Guns 14 | . 3 5 . . 6 . . . . . . . . . . . . . . . . . . . . . . . Cannons 2 | . . . . . . . . . . . . . . . . . . . . . . . . . . . . 2 AOE 48 | . 9 4 . 1 14 . 1 . . . . . . . . . . . . . . . . . . 3 . 16 Classes Destroyed 18 | 2 6 . . 1 4 . 1 . . . . . . . . . . . . . . . . . . 1 . 3 Worker 10 | . 2 1 . . 1 . . . . . 4 . . . . . . . . . 2 . . . . . . . Builder 10 | . 3 1 . . 4 . . . . . 2 . . . . . . . . . . . . . . . . . Tunneler 4 | 4 . . . . . . . . . . . . . . . . . . . . . . . . . . . . Hauler 5 | . 2 . . . . 2 . . . . . . . . . . . . . . . . . . . . . 1 Recycler 20 | 1 2 2 . . 4 2 . . . . 2 . . . . 1 . . . . 2 . . . . 2 2 . Mechanic 2 | . . . . . 2 . . . . . . . . . . . . . . . . . . . . . . . Operator 2 | . . . . . 2 . . . . . . . . . . . . . . . . . . . . . . . Watcher 6 | . 3 . . . 2 . . . . . . . . . . . . . . . 1 . . . . . . . Swarmer 28 | . 6 8 . . 5 . . . . . . . . . . . . . . . . . . . . . . 9 Cutter 3 | . . . . . . . . . . . . . . . . . . . . . . . . . . 3 . . Grunt 24 | . 8 2 . . 9 . 1 . . . . . . . . . . . . . . . . . . . . 4 Brawler 2 | . . . . . 2 . . . . . . . . . . . . . . . . . . . . . . . Sentry 4 | . . . . . 4 . . . . . . . . . . . . . . . . . . . . . . . Hunter 1 | . . . . . . . . . . . . . . . . . . . . . . . . . . . . 1 Programmer 1 | . . . . . . . . . . . . . . . . . . . . . . . . . . . . 1 Executioner 3 | . . . . . . . . . . . . . . . . . . . . . . . . . . . . 3 Decomposer 8 | . . . . . . . . . . . . . . . . . 8 . . . . . . . . . . . Packrat 1 | . . . . . . . . . . . . . . . . . 1 . . . . . . . . . . . Samaritan 5 | . . . . . . . 2 . . . . . . . . . . . . . . 2 . . 1 . . . Assembled 1 | . . . . 1 . . . . . . . . . . . . . . . . . . . . . . . . Best Kill Streak 9 | 3 7 6 . 1 7 3 1 . . . 5 . . . . 1 . . . . 3 . . . . 3 1 9 Combat Bots Only 9 | . 4 3 . 1 4 . 1 . . . . . . . . . . . . . . . . . . 3 . 9 Max Kills in Single Turn 5 | 1 2 2 . 1 2 1 1 . . . 1 . 1 . . 1 1 . . . 1 1 . . 1 2 1 5 Gunslinging . | . . . . . . . . . . . . . . . . . . . . . . . . . . . . . Exploded 5 | . 2 1 . 1 2 . 1 . . . . . . . . . . . . . . . . . . 2 . 5 Melee . | . . . . . . . . . . . . . . . . . . . . . . . . . . . . . Uniques/NPCs Destroyed . | . . . . . . . . . . . . . . . . . . . . . . . . . . . . . Combat | -11 -10 -10 -10 -9 -8 -7 -7 -7 -7 -6 -6 -6 -6 -6 -5 -5 -5 -5 -5 -4 -4 -4 -4 -4 -3 -3 -3 -2 -------- Run | Jun Mat Min Exi Min Mat Fac Low Low Zio Pro Fac Low Low Dat Pro Fac Upp Upp Zhi Pro Fac Upp Upp War Pro Res Tes Res Damage Taken 10897 | . 313 328 . . 856 240 121 . . . . . . . 20 45 . . . 105 . . 39 . . 986 707 7137 Core 2198 | . 64 146 . . 94 . . . . . . . . . . . . . . 23 . . . . . 284 115 1472 Absorbed by Shields . | . . . . . . . . . . . . . . . . . . . . . . . . . . . . . Redirected to Shielding 55 | . . . . . . 47 8 . . . . . . . . . . . . . . . . . . . . . Regen/Repaired (Parts) 5 | . . . . . . . . . . . . . . . . . . . . . . . . 5 . . . . Core Remaining (%) 83 | 100 . . . 16 82 . . . . 100 . . . . 100 . . . . 97 . . . . 100 . 69 . Volleys Fired 240 | 10 34 18 . 2 80 7 12 2 . 13 . . . . 1 3 . . . . 1 2 . . . 3 7 45 Largest 2 | 2 2 2 . 1 1 1 1 1 . 1 . . . . 1 1 . . . . 1 1 . . . 1 1 2 Hottest 153 | 80 80 80 . 30 40 48 48 48 . 48 . . . . 48 48 . . . . 65 65 . . . 60 80 153 Shots Fired 289 | 20 61 23 . 2 80 7 12 2 . 13 . . . . 1 3 . . . . 1 2 . . . 3 7 52 Gun 157 | 20 54 18 . . 52 . . . . . . . . . . . . . . . . . . . . . 5 8 Cannon 61 | . . . . . . 7 8 2 . 13 . . . . 1 3 . . . . 1 2 . . . . 2 22 Launcher 71 | . 7 5 . 2 28 . 4 . . . . . . . . . . . . . . . . . . 3 . 22 Special . | . . . . . . . . . . . . . . . . . . . . . . . . . . . . . Kinetic 76 | . . . . . 29 7 8 2 . 13 . . . . 1 3 . . . . 1 2 . . . . 2 8 Thermal 25 | . . . . . . . . . . . . . . . . . . . . . . . . . . . 5 20 Explosive 71 | . 7 5 . 2 28 . 4 . . . . . . . . . . . . . . . . . . 3 . 22 Electromagnetic 115 | 20 54 18 . . 23 . . . . . . . . . . . . . . . . . . . . . . . Entropic 2 | . . . . . . . . . . . . . . . . . . . . . . . . . . . . 2 Robot Hit Streak 17 | 6 9 9 . . 17 . . . . . . . . . . . . . . . . . . . . 1 . 11 Robot Miss Streak 8 | 2 5 8 . . 3 . . . . . . . . . . . . . . . . . . . . 1 . 1 Penetration Max 1 | . . . . . . . . . . . . . . . . . . . . . . . . . . . . 1 Secondary Targets 1 | . 1 . . . . . . . . . . . . . . . . . . . . . . . . . . . Max Gunslinging Chain 1 | . 1 . . . . . . . . . . . . . . . . . . . . . . . . . . . Shots Hit Robots 233 | 12 42 18 . . 54 6 4 2 . . 9 . 2 . . 3 10 . 11 . 9 2 . . 1 3 4 41 Core Hits 165 | 5 22 14 . 3 55 3 3 1 . . 6 . 2 . . 1 5 . 2 . 1 . . . . 4 2 36 Critical Kills . | . . . . . . . . . . . . . . . . . . . . . . . . . . . . . Critical Parts Destroyed 7 | . 5 1 . . . . . . . . . . . . . . . . . . . . . . . 1 . . Critical Strikes 13 | . 7 2 . . . 1 . . . . . . . . . . . . . . . . . . . 1 1 1 Corrupt 3 | . 2 1 . . . . . . . . . . . . . . . . . . . . . . . . . . Smash 7 | . 5 1 . . . . . . . . . . . . . . . . . . . . . . . 1 . . Sever 3 | . . . . . . 1 . . . . . . . . . . . . . . . . . . . . 1 1 Melee Attacks 282 | . 13 6 . 1 8 37 9 7 . 4 40 . 5 . 2 28 10 1 11 . 24 3 . 2 3 24 36 8 Impact 91 | . 13 6 . 1 8 . . . . . . . . . . . . . . . 24 3 . 2 3 24 7 . Slashing 191 | . . . . . . 37 9 7 . 4 40 . 5 . 2 28 10 1 11 . . . . . . . 29 8 Piercing . | . . . . . . . . . . . . . . . . . . . . . . . . . . . . . Sneak Attacks 53 | . 6 4 . . . 4 4 . . . 9 . 2 . . 1 9 . . . 5 2 . . 1 2 3 1 Combat Hostiles 2 | . . 1 . . . . . . . . . . . . . . . . . . . . . . . . 1 . Follow-up Attacks 1 | . . . . . . . . . . . . . . . . . . . . . . . . . . . 1 . Damage Inflicted 17086 | 201 1418 684 . 119 2737 349 429 211 . . 799 . 144 . . 158 807 . 798 . 681 220 . . 58 615 437 6221 Guns 1575 | 149 471 161 . . 610 . . . . . . . . . . . . . . . . . . . . . . 184 Cannons 975 | . . . . . . . . . . . . . . . . . . . . . . . . . . . . 975 Explosions 8451 | 52 616 273 . 119 2127 . 94 . . . . . . . . . . . . . . . . . . 390 . 4780 Melee 6085 | . 331 250 . . . 349 335 211 . . 799 . 144 . . 158 807 . 798 . 681 220 . . 58 225 437 282 Ramming . | . . . . . . . . . . . . . . . . . . . . . . . . . . . . . Kinetic 610 | . . . . . 426 . . . . . . . . . . . . . . . . . . . . . . 184 Thermal 1289 | 52 93 172 . . 140 . . . . . . . . . . . . . . . . . . . . . . 832 Explosive 7994 | . 523 101 . 119 1987 . 94 . . . . . . . . . . . . . . . . . . 390 . 4780 Electromagnetic 965 | 149 471 161 . . 184 . . . . . . . . . . . . . . . . . . . . . . . Impact 1765 | . 331 250 . . . . . . . . . . . . . . . . . . 681 220 . . 58 225 . . Slashing 4320 | . . . . . . 349 335 211 . . 799 . 144 . . 158 807 . 798 . . . . . . . 437 282 Piercing . | . . . . . . . . . . . . . . . . . . . . . . . . . . . . . Entropic 143 | . . . . . . . . . . . . . . . . . . . . . . . . . . . . 143 Highest Corruption 10 | . . . . . . 5 . . . . . . . . . 1 1 1 1 1 . . . . . 9 10 8 Average Corruption 3 | . . . . . . 2 . . . . . . . . . 1 1 1 1 1 . . . . . 2 9 3 Corruption Purged 5 | . . . . . . 5 . . . . . . . . . . . . . . . . . . . . . . Corruption Blocked 29 | . . . . . . . . . . . . . . . . . . . . . . . . . . . . 29 Effects 37 | . . . . . . 2 . . . . . . . . . . 3 2 1 . . . . . . 1 15 13 Message Errors 9 | . . . . . . 1 . . . . . . . . . . 1 1 1 . . . . . . 1 1 3 Matter Fused 6 | . . . . . . 1 . . . . . . . . . . 1 . . . . . . . . . 3 1 Heat Flow Errors 8 | . . . . . . . . . . . . . . . . . 1 . . . . . . . . . 3 4 Energy Discharges 2 | . . . . . . . . . . . . . . . . . . . . . . . . . . . . 2 Data Loss (minor) 7 | . . . . . . . . . . . . . . . . . . 1 . . . . . . . . 3 3 Data Loss (major) 1 | . . . . . . . . . . . . . . . . . . . . . . . . . . . 1 . Alerts 2 | . . . . . . . . . . . . . . . . . . . . . . . . . . . 2 . Misdirections 2 | . . . . . . . . . . . . . . . . . . . . . . . . . . . 2 . Overload Shots . | . . . . . . . . . . . . . . . . . . . . . . . . . . . . . Overflow Damage 2790 | . 279 140 . . 82 38 132 96 . . 148 . . . . 45 346 . 208 . 295 211 . . 51 195 125 399 Projectiles 43 | . . . . . . . . . . . . . . . . . . . . . . . . . . . . 43 Explosions 467 | . . 29 . . 82 . . . . . . . . . . . . . . . . . . . . . . 356 Melee 2280 | . 279 111 . . . 38 132 96 . . 148 . . . . 45 346 . 208 . 295 211 . . 51 195 125 . Knockbacks 9 | . 2 . . . . . . . . . . . . . . . . . . . 6 . . . . 1 . . Impact 9 | . 2 . . . . . . . . . . . . . . . . . . . 6 . . . . 1 . . Kinetic . | . . . . . . . . . . . . . . . . . . . . . . . . . . . . . Secondary . | . . . . . . . . . . . . . . . . . . . . . . . . . . . . . Self-Inflicted Damage 592 | . 47 71 . . 110 . 102 . . . . . . . . . . . . . . . . . . 202 . 60 Shots 15 | . 2 3 . . 4 . 3 . . . . . . . . . . . . . . . . . . 2 . 1 Rammed . | . . . . . . . . . . . . . . . . . . . . . . . . . . . . . Targets Rammed . | . . . . . . . . . . . . . . . . . . . . . . . . . . . . . Kicked . | . . . . . . . . . . . . . . . . . . . . . . . . . . . . . Crushed . | . . . . . . . . . . . . . . . . . . . . . . . . . . . . . Highest Temperature 302 | 54 96 135 . . 13 88 57 59 90 80 55 95 80 56 84 15 171 86 60 . 77 135 157 302 2 2 183 175 Average Temperature 32 | 29 33 54 . . 5 20 20 23 37 34 13 33 30 32 31 3 27 28 13 . 24 43 63 90 2 2 74 56 Received Heat Transfer 852 | . 93 51 . . 270 18 . . . . . . . . . 9 . . . . . . . . . 9 150 252 Siege Activations . | . . . . . . . . . . . . . . . . . . . . . . . . . . . . . Robots Corrupted 2 | . 2 . . . . . . . . . . . . . . . . . . . . . . . . . . . Combat Hostiles 2 | . 2 . . . . . . . . . . . . . . . . . . . . . . . . . . . Parts Fried 44 | . 19 7 . . 1 . . . . . . . . . . . . . . . 11 3 . . 1 2 . . Impact Corruptions 37 | . 11 6 . . . . . . . . . . . . . . . . . . 8 4 . . 3 5 . . Robots Melted . | . . . . . . . . . . . . . . . . . . . . . . . . . . . . . Combat Hostiles . | . . . . . . . . . . . . . . . . . . . . . . . . . . . . . Parts Melted . | . . . . . . . . . . . . . . . . . . . . . . . . . . . . . Heat Transferred 1266 | 100 50 300 . . 150 . . . . . . . . . . . . . . . . . . . . . . 666 Parts Sabotaged . | . . . . . . . . . . . . . . . . . . . . . . . . . . . . . Parts Stolen . | . . . . . . . . . . . . . . . . . . . . . . . . . . . . . Parts Stripped . | . . . . . . . . . . . . . . . . . . . . . . . . . . . . . Power Chain Reactions 7 | 2 2 2 . . 1 . . . . . . . . . . . . . . . . . . . . . . . Missiles Intercepted . | . . . . . . . . . . . . . . . . . . . . . . . . . . . . . Alert | -11 -10 -10 -10 -9 -8 -7 -7 -7 -7 -6 -6 -6 -6 -6 -5 -5 -5 -5 -5 -4 -4 -4 -4 -4 -3 -3 -3 -2 ------- Run | Jun Mat Min Exi Min Mat Fac Low Low Zio Pro Fac Low Low Dat Pro Fac Upp Upp Zhi Pro Fac Upp Upp War Pro Res Tes Res Peak Influence 848 | 25 217 286 . 19 525 320 . . . . 102 . . . . 163 . . . . 267 . . . . 525 582 848 Initial 327 | . 16 35 . . . 220 . . . . . . . . . 9 . . . . 103 . . . . . 209 327 Average 265 | 13 67 213 . 10 271 219 . . . . 40 . . . . 113 . . . . 185 . . . . 171 337 660 Maximum Alert Level 3 | . 1 1 . . 2 1 . . . . . . . . . . . . . . 1 . . . . 2 2 3 Low Security (%) 54 | 100 97 54 . 100 41 30 . . . . 100 . . . . 100 . . . . 61 . . . . 69 . . Level 1 17 | . 2 45 . . 24 69 . . . . . . . . . . . . . . 38 . . . . 20 73 4 Level 2 17 | . . . . . 34 . . . . . . . . . . . . . . . . . . . . 9 26 49 Level 3 10 | . . . . . . . . . . . . . . . . . . . . . . . . . . . . 45 Level 4 . | . . . . . . . . . . . . . . . . . . . . . . . . . . . . . Level 5 . | . . . . . . . . . . . . . . . . . . . . . . . . . . . . . High Security . | . . . . . . . . . . . . . . . . . . . . . . . . . . . . . Max Security . | . . . . . . . . . . . . . . . . . . . . . . . . . . . . . Squads Dispatched 15 | . 1 . . . 4 2 . . . . 2 . . . . 1 . . . . . . . . . 2 3 . Investigation 2 | . . . . . . . . . . . 1 . . . . . . . . . . . . . . . 1 . Extermination 2 | . . . . . . 1 . . . . . . . . . 1 . . . . . . . . . . . . Reinforcement 9 | . 1 . . . 2 1 . . . . 1 . . . . . . . . . . . . . . 2 2 . Assault 1 | . . . . . 1 . . . . . . . . . . . . . . . . . . . . . . . Garrison 1 | . . . . . 1 . . . . . . . . . . . . . . . . . . . . . . . Intercept . | . . . . . . . . . . . . . . . . . . . . . . . . . . . . . Searches Triggered 2 | . . . . . . . . . . . . . . . . . . . . . . . . . . 1 1 . Data Miner Redirects 1 | . . . . . . . . . . . . . . . . . . . . . . . . . . . 1 . Construction Impeded 1 | . . . . . 1 . . . . . . . . . . . . . . . . . . . . . . . Haulers Reinforced 1 | . . . . . . . . . . . . . . . . . . . . . . . . . . 1 . . Active Scanning Responses . | . . . . . . . . . . . . . . . . . . . . . . . . . . . . . Cargo Convoy Interrupts . | . . . . . . . . . . . . . . . . . . . . . . . . . . . . . Stealth | -11 -10 -10 -10 -9 -8 -7 -7 -7 -7 -6 -6 -6 -6 -6 -5 -5 -5 -5 -5 -4 -4 -4 -4 -4 -3 -3 -3 -2 --------- Run | Jun Mat Min Exi Min Mat Fac Low Low Zio Pro Fac Low Low Dat Pro Fac Upp Upp Zhi Pro Fac Upp Upp War Pro Res Tes Res Distress Signals 15 | . 1 . . 1 4 1 . . . . . . . . . . . . . . . . . . . 1 2 5 Communications Jammed 2 | . . . . . . . . . . . . . . . . . . . . . . . . . . 2 . . Distress Signals 2 | . . . . . . . . . . . . . . . . . . . . . . . . . . 2 . . Times Spotted 296 | . 19 10 . 3 40 16 6 . . 3 . 2 5 . 1 5 . . . 14 8 . 4 15 . 25 45 75 Peak Tracking Total 23 | . 4 3 . 2 8 6 11 . . 3 2 3 5 . 1 3 . . . 7 4 . 4 9 . 17 23 17 Tactical Retreats 38 | . . 1 . . 3 4 . . . . . 1 . . 1 2 . . . 5 . . . . . 5 8 8 Traps | -11 -10 -10 -10 -9 -8 -7 -7 -7 -7 -6 -6 -6 -6 -6 -5 -5 -5 -5 -5 -4 -4 -4 -4 -4 -3 -3 -3 -2 ------- Run | Jun Mat Min Exi Min Mat Fac Low Low Zio Pro Fac Low Low Dat Pro Fac Upp Upp Zhi Pro Fac Upp Upp War Pro Res Tes Res Traps Triggered 5 | . . . . . . . . . . . 1 . . . . . . . . . . . . . . 2 2 . Indirectly . | . . . . . . . . . . . . . . . . . . . . . . . . . . . . . Trap Hack Attempts . | . . . . . . . . . . . . . . . . . . . . . . . . . . . . . Triggered . | . . . . . . . . . . . . . . . . . . . . . . . . . . . . . Disarmed . | . . . . . . . . . . . . . . . . . . . . . . . . . . . . . Reprogrammed . | . . . . . . . . . . . . . . . . . . . . . . . . . . . . . Reused . | . . . . . . . . . . . . . . . . . . . . . . . . . . . . . Traps Extracted . | . . . . . . . . . . . . . . . . . . . . . . . . . . . . . Installed . | . . . . . . . . . . . . . . . . . . . . . . . . . . . . . Triggered 17 | . . . . . . . 2 . . . . . 1 . . . . . . . . . . 14 . . . . Machines | -11 -10 -10 -10 -9 -8 -7 -7 -7 -7 -6 -6 -6 -6 -6 -5 -5 -5 -5 -5 -4 -4 -4 -4 -4 -3 -3 -3 -2 ---------- Run | Jun Mat Min Exi Min Mat Fac Low Low Zio Pro Fac Low Low Dat Pro Fac Upp Upp Zhi Pro Fac Upp Upp War Pro Res Tes Res Machines Disabled 16 | . 3 . . . 5 . . . . . . . . . . . . . . . . . . 3 . . 4 1 Max in Single Turn 1 | . 1 . . . 1 . . . . . . . . . . . . . . . . . . . . . 1 1 Garrison Access 6 | . . . . . 1 . . . . . . . . . . 1 . . . . . . . . . 1 1 2 Machines Repaired . | . . . . . . . . . . . . . . . . . . . . . . . . . . . . . Machines Sabotaged . | . . . . . . . . . . . . . . . . . . . . . . . . . . . . . Overloaded Fab Kills . | . . . . . . . . . . . . . . . . . . . . . . . . . . . . . Hacking | -11 -10 -10 -10 -9 -8 -7 -7 -7 -7 -6 -6 -6 -6 -6 -5 -5 -5 -5 -5 -4 -4 -4 -4 -4 -3 -3 -3 -2 --------- Run | Jun Mat Min Exi Min Mat Fac Low Low Zio Pro Fac Low Low Dat Pro Fac Upp Upp Zhi Pro Fac Upp Upp War Pro Res Tes Res Machines Accessed 72 | . 7 . 3 1 4 8 1 . . 1 3 . 2 4 . 5 . . 9 . 2 . 1 11 . 4 4 2 Terminals 26 | . 4 . . . 4 6 . . . 1 2 . . . . 2 . . . . 1 . . . . 3 3 . Fabricators . | . . . . . . . . . . . . . . . . . . . . . . . . . . . . . Repair Stations 1 | . 1 . . . . . . . . . . . . . . . . . . . . . . . . . . . Recycling Units 8 | . 2 . . . . . . . . . 1 . . . . 2 . . . . 1 . . . . . . 2 Scanalyzers . | . . . . . . . . . . . . . . . . . . . . . . . . . . . . . Garrison Access 5 | . . . . . . 2 . . . . . . . . . 1 . . . . . . . . . 1 1 . Total Hacks 196 | . 16 . 3 1 10 14 1 . . 1 4 . 8 26 . 10 . . 48 . 4 . 1 29 . 5 13 2 Successful 153 | . 5 . 3 1 7 3 1 . . 1 1 . 8 26 . 6 . . 48 . 2 . 1 29 . 4 5 2 Failed 42 | . 10 . . . 3 11 . . . . 3 . . . . 4 . . . . 2 . . . . 1 8 . Catastrophic 9 | . 1 . . . . 2 . . . . 2 . . . . 2 . . . . . . . . . 1 1 . Database Lockouts 1 | . 1 . . . . . . . . . . . . . . . . . . . . . . . . . . . Manual 44 | . 15 . . . 6 6 . . . . 2 . . . . 5 . . . . 3 . . 1 . 1 5 . Terminals 58 | . 10 . . . 10 12 . . . 1 3 . . . . 6 . . . . 3 . . . . 4 9 . Fabricators . | . . . . . . . . . . . . . . . . . . . . . . . . . . . . . Repair Stations 2 | . 2 . . . . . . . . . . . . . . . . . . . . . . . . . . . Recycling Units 11 | . 4 . . . . . . . . . 1 . . . . 3 . . . . 1 . . . . . . 2 Scanalyzers . | . . . . . . . . . . . . . . . . . . . . . . . . . . . . . Garrison Access 8 | . . . . . . 2 . . . . . . . . . 1 . . . . . . . . . 1 4 . Terminal Hacks 140 | . 1 . 3 1 7 3 1 . . 1 . . 8 26 . 3 . . 48 . 1 . 1 29 . 3 4 . Record 74 | . . . 3 . . . . . . 1 . . 7 11 . . . . 36 . . . . 16 . . . . Part Schematic 13 | . . . . . . . . . . . . . . 9 . . . . 4 . . . . . . . . . Robot Schematic 3 | . . . . . . . . . . . . . . 3 . . . . . . . . . . . . . . Robot Analysis 5 | . 1 . . . . . . . . . . . . . . . . . 4 . . . . . . . . . Prototype ID Bank 19 | . . . . . 1 . . . . . . . . 3 . . . . 4 . . . . 11 . . . . Open Door 6 | . . . . 1 . . 1 . . . . . 1 . . . . . . . . . 1 2 . . . . Level Access Points 1 | . . . . . 1 . . . . . . . . . . . . . . . . . . . . . . . Branch Access Points 5 | . . . . . 2 . . . . . . . . . . 1 . . . . 1 . . . . . 1 . Terminal Index 1 | . . . . . . . . . . . . . . . . 1 . . . . . . . . . . . . Unreport Threat 3 | . . . . . 2 1 . . . . . . . . . . . . . . . . . . . . . . Locate Traps 4 | . . . . . . . . . . . . . . . . 1 . . . . . . . . . 2 1 . Recall Reinforcements 1 | . . . . . . . . . . . . . . . . . . . . . . . . . . . 1 . Zone Layout 5 | . . . . . 1 2 . . . . . . . . . . . . . . . . . . . 1 1 . Fabricator Hacks . | . . . . . . . . . . . . . . . . . . . . . . . . . . . . . Repair Station Hacks 1 | . 1 . . . . . . . . . . . . . . . . . . . . . . . . . . . Scan Component 1 | . 1 . . . . . . . . . . . . . . . . . . . . . . . . . . . Recycling Unit Hacks 6 | . 2 . . . . . . . . . . . . . . 1 . . . . 1 . . . . . . 2 Retrieve Components 6 | . 2 . . . . . . . . . . . . . . 1 . . . . 1 . . . . . . 2 Scanalyzer . | . . . . . . . . . . . . . . . . . . . . . . . . . . . . . Garrison Access Hacks 3 | . . . . . . . . . . . . . . . . 1 . . . . . . . . . 1 1 . Seal Access 3 | . . . . . . . . . . . . . . . . 1 . . . . . . . . . 1 1 . Unauthorized Hacks 3 | . 1 . . . . . . . . . 1 . . . . 1 . . . . . . . . . . . . Terminals 3 | . 1 . . . . . . . . . 1 . . . . 1 . . . . . . . . . . . . Track 1 | . . . . . . . . . . . 1 . . . . . . . . . . . . . . . . . Assimilate 1 | . 1 . . . . . . . . . . . . . . . . . . . . . . . . . . . Botnet 1 | . . . . . . . . . . . . . . . . 1 . . . . . . . . . . . . Fabricators . | . . . . . . . . . . . . . . . . . . . . . . . . . . . . . Repair Stations . | . . . . . . . . . . . . . . . . . . . . . . . . . . . . . Recycling Units . | . . . . . . . . . . . . . . . . . . . . . . . . . . . . . Scanalyzers . | . . . . . . . . . . . . . . . . . . . . . . . . . . . . . Garrison Access . | . . . . . . . . . . . . . . . . . . . . . . . . . . . . . Data Cores Recovered . | . . . . . . . . . . . . . . . . . . . . . . . . . . . . . Used . | . . . . . . . . . . . . . . . . . . . . . . . . . . . . . Hacking Detections 32 | . 7 . . . 3 8 . . . . 3 . . . . 4 . . . . 1 . . . . 2 3 1 Full Trace Events 2 | . 1 . . . . . . . . . 1 . . . . . . . . . . . . . . . . . Feedback Events . | . . . . . . . . . . . . . . . . . . . . . . . . . . . . . Feedback Blocked . | . . . . . . . . . . . . . . . . . . . . . . . . . . . . . Robot Schematics Acquired 3 | . . . . . . . . . . . . . . 3 . . . . . . . . . . . . . . Robots Built . | . . . . . . . . . . . . . . . . . . . . . . . . . . . . . Authchips . | . . . . . . . . . . . . . . . . . . . . . . . . . . . . . Time . | . . . . . . . . . . . . . . . . . . . . . . . . . . . . . Total Robot Build Rating . | . . . . . . . . . . . . . . . . . . . . . . . . . . . . . Part Schematics Acquired 13 | . . . . . . . . . . . . . . 9 . . . . 4 . . . . . . . . . Parts Built . | . . . . . . . . . . . . . . . . . . . . . . . . . . . . . Authchips . | . . . . . . . . . . . . . . . . . . . . . . . . . . . . . Time . | . . . . . . . . . . . . . . . . . . . . . . . . . . . . . Total Part Build Rating . | . . . . . . . . . . . . . . . . . . . . . . . . . . . . . Parts Repaired . | . . . . . . . . . . . . . . . . . . . . . . . . . . . . . Time . | . . . . . . . . . . . . . . . . . . . . . . . . . . . . . Parts Recycled . | . . . . . . . . . . . . . . . . . . . . . . . . . . . . . Recycled Matter . | . . . . . . . . . . . . . . . . . . . . . . . . . . . . . Retrieved Matter . | . . . . . . . . . . . . . . . . . . . . . . . . . . . . . Retrieved Components 18 | . 10 . . . . . . . . . . . . . . 2 . . . . 2 . . . . . . 4 Parts Scanalyzed . | . . . . . . . . . . . . . . . . . . . . . . . . . . . . . Part Schematics Acquired . | . . . . . . . . . . . . . . . . . . . . . . . . . . . . . Parts Damaged . | . . . . . . . . . . . . . . . . . . . . . . . . . . . . . Bothacking | -11 -10 -10 -10 -9 -8 -7 -7 -7 -7 -6 -6 -6 -6 -6 -5 -5 -5 -5 -5 -4 -4 -4 -4 -4 -3 -3 -3 -2 ------------ Run | Jun Mat Min Exi Min Mat Fac Low Low Zio Pro Fac Low Low Dat Pro Fac Upp Upp Zhi Pro Fac Upp Upp War Pro Res Tes Res Used RIF Installer . | . . . . . . . . . . . . . . . . . . . . . . . . . . . . . Robots Hacked . | . . . . . . . . . . . . . . . . . . . . . . . . . . . . . Non-combat . | . . . . . . . . . . . . . . . . . . . . . . . . . . . . . Combat . | . . . . . . . . . . . . . . . . . . . . . . . . . . . . . Robot Hacks Applied . | . . . . . . . . . . . . . . . . . . . . . . . . . . . . . Relay Couplers Released 5 | . . . . . 3 . . . . . . . . . . . . . . . . . . . . . . 2 Machine Destruction 5 | . . . . . 3 . . . . . . . . . . . . . . . . . . . . . . 2 Fabnet Peak Effective % . | . . . . . . . . . . . . . . . . . . . . . . . . . . . . . Robots Rewired 6 | . . . . . . . . . . . . . . . . . . . . . . . . 5 . . 1 . Allies Hacked . | . . . . . . . . . . . . . . . . . . . . . . . . . . . . . Hacks Repelled . | . . . . . . . . . . . . . . . . . . . . . . . . . . . . . Allies | -11 -10 -10 -10 -9 -8 -7 -7 -7 -7 -6 -6 -6 -6 -6 -5 -5 -5 -5 -5 -4 -4 -4 -4 -4 -3 -3 -3 -2 -------- Run | Jun Mat Min Exi Min Mat Fac Low Low Zio Pro Fac Low Low Dat Pro Fac Upp Upp Zhi Pro Fac Upp Upp War Pro Res Tes Res Total Allies 13 | . 1 . . 3 . 2 . . . . . . . . 1 . . . . . . . . 5 . . 1 . Largest Group 5 | . 1 1 . 3 3 1 . . . . . . . . 1 . . . . . . . . 5 2 . 1 . Highest-Rated Group 265 | . 10 10 . 55 55 32 . . . . . . . . 96 . . . . . . . . 265 114 . 136 . Highest-Rated Ally 136 | . 10 10 . 31 31 32 . . . . . . . . 96 . . . . . . . . 65 65 . 136 . Total Orders 55 | . . . . . . 28 . . . . . . . . . . . . . . . . . 18 4 . 5 . STAY 12 | . . . . . . . . . . . . . . . . . . . . . . . . 10 2 . . . ROAM 2 | . . . . . . 2 . . . . . . . . . . . . . . . . . . . . . . FOLLOW 11 | . . . . . . . . . . . . . . . . . . . . . . . . 8 2 . 1 . EXPLORE 29 | . . . . . . 26 . . . . . . . . . . . . . . . . . . . . 3 . RETURN 1 | . . . . . . . . . . . . . . . . . . . . . . . . . . . 1 . Ally Attacks 108 | . . . . . 27 31 . . . . . . . . 8 . . . . . . . . 35 1 . 6 . Total Damage 3009 | . . . . . 344 192 . . . . . . . . 289 . . . . . . . . 1722 44 . 418 . Kills 23 | . . . . . 2 2 . . . . . . . . 1 . . . . . . . . 15 . . 3 . Allies Corrupted 3 | . . . . . . . . . . . . . . . 1 . . . . . . . . 1 1 . . . Allies Melted 2 | . . . . . . . . . . . . . . . . . . . . . . . . . . . 1 1 Intel | -11 -10 -10 -10 -9 -8 -7 -7 -7 -7 -6 -6 -6 -6 -6 -5 -5 -5 -5 -5 -4 -4 -4 -4 -4 -3 -3 -3 -2 ------- Run | Jun Mat Min Exi Min Mat Fac Low Low Zio Pro Fac Low Low Dat Pro Fac Upp Upp Zhi Pro Fac Upp Upp War Pro Res Tes Res Robot Analysis Total 5 | . 1 . . . . . . . . . . . . . . . . . 4 . . . . . . . . . Derelict Logs Recovered 12 | . . . . 1 . . . 1 1 1 . 1 2 . 1 . . 1 . 2 . . 1 . . . . . Drone Launches 37 | . . . . . . 33 . . . . . . . . . . . . . . . . . . . . 4 . Drone Recoveries 32 | . . . . . . 30 . . . . . . . . . . . . . . . . . . . . 2 . Exploration | -11 -10 -10 -10 -9 -8 -7 -7 -7 -7 -6 -6 -6 -6 -6 -5 -5 -5 -5 -5 -4 -4 -4 -4 -4 -3 -3 -3 -2 ------------- Run | Jun Mat Min Exi Min Mat Fac Low Low Zio Pro Fac Low Low Dat Pro Fac Upp Upp Zhi Pro Fac Upp Upp War Pro Res Tes Res Turns Passed 12633 | 96 1833 467 625 661 1164 752 198 167 306 432 407 131 282 38 123 410 146 119 364 199 199 135 84 617 143 256 314 1965 Spaces Moved 17339 | 54 775 304 480 266 470 1353 450 586 1088 393 876 462 729 103 380 927 357 285 557 428 672 558 450 976 391 694 719 1556 Core 122 | . 1 . . . . . . . . . . . . . . . . . . . . . . . . . . 121 Treads 1642 | . 278 . . . 358 11 . . . . . . . . . . . . . . . . . . . . . 995 Legs 59 | 54 5 . . . . . . . . . . . . . . . . . . . . . . . . . . . Wheels 1653 | . 491 304 480 266 112 . . . . . . . . . . . . . . . . . . . . . . . Hover . | . . . . . . . . . . . . . . . . . . . . . . . . . . . . . Flight 13863 | . . . . . . 1342 450 586 1088 393 876 462 729 103 380 927 357 285 557 428 672 558 450 976 391 694 719 440 Fastest Speed 14 | 120 120 130 130 130 130 23 23 23 23 23 20 20 20 20 20 20 17 17 17 19 14 14 14 14 19 19 19 23 Average Speed 47 | 120 209 130 130 143 189 24 23 23 23 23 20 20 20 20 20 20 18 17 19 19 14 14 14 15 19 19 20 107 Slowest Speed 1500 | 120 1500 175 130 175 240 160 23 23 23 23 23 20 20 20 20 20 20 18 22 19 14 14 14 20 19 19 23 243 Overloaded Moves . | . . . . . . . . . . . . . . . . . . . . . . . . . . . . . Propulsion Burnouts . | . . . . . . . . . . . . . . . . . . . . . . . . . . . . . Robots Hopped 24 | . . . . . . 4 . . . . . 2 . . . . . . . . . . . 4 . 7 2 5 Cave-ins Triggered 1 | . . . . . . . . . . . . . . . . . . . . . . . . . . 1 . . Exploration Rate (%) 56 | 3 97 46 90 49 44 46 46 76 88 64 24 67 72 74 53 24 58 43 62 67 19 80 51 93 56 30 77 41 Regions Visited 28 Branch Regions 20 Pre-discovered Areas 12 | . . . . 1 . . . . 2 . . 1 3 1 . . . . 3 1 . . . . . . . . Known Exits Taken 24 | . 1 . . . 1 1 1 1 1 1 1 1 1 1 1 1 1 1 1 1 1 1 1 1 1 1 1 . Unknown Exits Taken 4 | 1 . 1 1 1 . . . . . . . . . . . . . . . . . . . . . . . . Scrap Searched 23 | . . . . . . . 1 2 4 . . 3 . . 1 . 3 1 . 2 . 3 1 . 2 . . . Spaces Dug 247 | . 5 . . 1 5 37 36 7 . 16 31 . 3 . 3 29 . 1 . . 13 3 . 2 2 21 28 4 Terrain Destroyed 731 | 5 47 59 . 27 130 37 52 7 . 16 31 . 3 . 3 29 . 1 . . 13 3 . 2 2 51 28 185 Melee 182 | . 5 . . 1 5 31 5 5 . 4 31 . 3 . 2 25 . 1 . . 12 1 . 2 2 21 22 4 Projectile 44 | . . . . . . 6 8 2 . 12 . . . . 1 4 . . . . 1 2 . . . . 6 2 AOE 505 | 5 42 59 . 26 125 . 39 . . . . . . . . . . . . . . . . . . 30 . 179 Terrain Rammed . | . . . . . . . . . . . . . . . . . . . . . . . . . . . . . Walls Destroyed . | . . . . . . . . . . . . . . . . . . . . . . . . . . . . . Machines Disabled . | . . . . . . . . . . . . . . . . . . . . . . . . . . . . . Actions | -11 -10 -10 -10 -9 -8 -7 -7 -7 -7 -6 -6 -6 -6 -6 -5 -5 -5 -5 -5 -4 -4 -4 -4 -4 -3 -3 -3 -2 --------- Run | Jun Mat Min Exi Min Mat Fac Low Low Zio Pro Fac Low Low Dat Pro Fac Upp Upp Zhi Pro Fac Upp Upp War Pro Res Tes Res Total 20901 | 64 904 339 481 536 656 1707 515 606 1144 714 1057 497 859 118 422 1119 422 351 800 544 732 605 470 1432 453 765 822 1767 Wait 2384 | . 9 . . 251 16 233 41 6 42 301 100 38 118 14 38 136 52 65 187 116 17 41 21 399 60 12 13 58 Move 17267 | 53 774 303 479 265 469 1344 449 585 1087 392 875 458 728 102 379 926 356 284 556 427 671 557 449 969 390 679 714 1547 Hop 20 | . . . . . . 4 . . . . . 1 . . . . . . . . . . . 2 . 7 2 4 Pick Up 151 | . 32 . 2 2 21 19 1 . 3 . 4 . . . . 7 . . 9 . 5 . . 4 . 5 4 33 Fast Attach 69 | 1 1 2 . . 5 10 . 1 2 . 6 . 4 . . 3 . . 8 . 2 . . 11 . 1 2 10 Attach 74 | . 8 2 . . 10 11 . . . . 2 . . . . 3 . . 4 . 2 . . 2 . 5 6 19 Detach 12 | . 4 . . . . . . . 1 . . . . . . 1 . . 1 . . . . 1 . 1 3 . Swap 135 | . 13 5 . 12 18 10 2 4 3 4 7 . . 2 2 5 4 1 8 1 5 2 . 5 . 4 1 17 Drop 180 | . 16 3 . 3 29 32 1 1 6 . 8 . 4 . . 7 . . 16 . 5 . . 16 . 6 1 26 Fire 240 | 10 34 18 . 2 80 7 12 2 . 13 . . . . 1 3 . . . . 1 2 . . . 3 7 45 Melee 278 | . 13 6 . 1 8 37 9 7 . 4 40 . 5 . 2 28 10 1 11 . 24 3 . 2 3 24 32 8 Ram . | . . . . . . . . . . . . . . . . . . . . . . . . . . . . . Kick . | . . . . . . . . . . . . . . . . . . . . . . . . . . . . . Crush . | . . . . . . . . . . . . . . . . . . . . . . . . . . . . . Escape Stasis 67 | . . . . . . . . . . . 15 . . . . . . . . . . . . . . 18 34 . Rewire 24 | . . . . . . . . . . . . . . . . . . . . . . . . 21 . . 3 . Trap . | . . . . . . . . . . . . . . . . . . . . . . . . . . . . . Miscellaneous . | . . . . . . . . . . . . . . . . . . . . . . . . . . . . . Route ------- -11/Junkyard -10/Materials (discovered 6 exits: [*Mat x3] / *Min x2 / [*Sub]) -10/Mines (discovered 3 exits: [*Mat] / *Exi / [Sub]) -10/Exiles (discovered 2 exits: *Min x2) -9/Mines -8/Materials (discovered 4 exits: *Fac x3 / Sto) -7/Factory (discovered 5 exits: *Fac x3 / *Low x2) -7/Lower Caves -7/Lower Caves -7/Zion -6/Proximity Caves -6/Factory (discovered 2 exits: Fac / *Low) -6/Lower Caves -6/Lower Caves -6/Data Miner -5/Proximity Caves -5/Factory (discovered 5 exits: *Fac / *Upp x2 / *Ext x2) -5/Upper Caves -5/Upper Caves -5/Zhirov -4/Proximity Caves -4/Factory (discovered 3 exits: *Upp x2 / Arm) -4/Upper Caves -4/Upper Caves -4/Warlord -3/Proximity Caves -3/Research -3/Testing -2/Research (discovered 3 exits: *Acc x3) History --------- Turn | Location | Event 1 | -11/Junkyard | Discovered new exit (range 3) 97 | -11/Junkyard | Entered Materials 317 | -10/Materials | Build established: Mutant 320 | -10/Materials | Discovered new exit (range 15) 407 | -10/Materials | Discovered new exit (range 13) 812 | -10/Materials | Identified exit to Mines 875 | -10/Materials | Discovered new exit (range 10) 1123 | -10/Materials | Discovered new exit (range 16) 1485 | -10/Materials | Central database locked down 1574 | -10/Materials | Discovered new exit (range 13) 1872 | -10/Materials | Discovered new exit (range 8) 1930 | -10/Materials | Entered Mines 1930 | -10/Mines | Accompanied by 1 ally 2063 | -10/Mines | Discovered new exit (range 7) 2120 | -10/Mines | Core integrity fell below 50% 2156 | -10/Mines | Received a Rocket Launcher from a helpful Derelict 2165 | -10/Mines | Discovered new exit (range 6) 2257 | -10/Mines | Deemed a non-threat by the Exiles lab entrance 2257 | -10/Mines | Discovered new exit (range 5) 2330 | -10/Mines | Core integrity fell below 20% 2397 | -10/Mines | Entered Exiles 2397 | -10/Exiles | Found Exiles lab abandoned 2426 | -10/Exiles | Discovered new exit (range 14) 3009 | -10/Exiles | Discovered new exit (range 10) 3022 | -10/Exiles | Entered Mines 3023 | -9/Mines | Assembled infested the area 3028 | -9/Mines | Assisted by a Guerilla fighting off Assembled 3038 | -9/Mines | Met a Derelict bent on vengeance 3541 | -9/Mines | Assisted by bots powering up and referring to "LRC-V3" 3574 | -9/Mines | Found the Drone Emporium 3579 | -9/Mines | Learned location of Zion (-7) 3583 | -9/Mines | Found Prototype Device 3584 | -9/Mines | Identified Splice Drone Bay 3614 | -9/Mines | Discovered new exit (range 7) 3616 | -9/Mines | Received a Mining Laser from a helpful Derelict 3683 | -9/Mines | Entered Materials 3683 | -8/Materials | Accompanied by 3 allies 3683 | -8/Materials | Evolved 4 slots: Propulsion x2, Utility x2 3728 | -8/Materials | Garrison activated, responded to threat 3853 | -8/Materials | Identified exit to Storage 4189 | -8/Materials | Build established: Scavenger-Mutant 4519 | -8/Materials | Discovered new exit (range 11) 4581 | -8/Materials | Identified exit to Factory 4828 | -8/Materials | Build established: Mutant 4847 | -8/Materials | Entered Factory 4847 | -7/Factory | Evolved 2 slots: Propulsion x1, Utility x1 4947 | -7/Factory | Discovered new exit (range 7) 4952 | -7/Factory | Identified exit to Lower Caves 5089 | -7/Factory | Discovered new exit (range 43) 5245 | -7/Factory | Build established: Scout 5285 | -7/Factory | Identified exit to Factory 5375 | -7/Factory | Discovered exit to Lower Caves (range 15) 5443 | -7/Factory | Discovered exit to Factory (range 20) 5488 | -7/Factory | Discovered exit to Factory (range 16) 5599 | -7/Factory | Entered Lower Caves 5618 | -7/Lower Caves | Encountered a Warlord checkpoint 5725 | -7/Lower Caves | Spotted B-75 Beast 5795 | -7/Lower Caves | Discovered new exit (range 10) 5797 | -7/Lower Caves | Identified exit to Lower Caves 5797 | -7/Lower Caves | Entered another Lower Caves area 5836 | -7/Lower Caves | Learned location of 1 exit from Factory 5851 | -7/Lower Caves | Encountered a Warlord checkpoint 5894 | -7/Lower Caves | Discovered new exit (range 5) 5894 | -7/Lower Caves | Identified exit to Zion 5964 | -7/Lower Caves | Entered Zion 5973 | -7/Zion | Discovered new exit (range 15) 5981 | -7/Zion | Identified exit to Proximity Caves 6110 | -7/Zion | Learned location of Testing (-3) 6170 | -7/Zion | Found GAL Module 6270 | -7/Zion | Entered Proximity Caves 6699 | -6/Proximity Caves | Discovered exit to Factory (range 7) 6702 | -6/Proximity Caves | Entered Factory 6702 | -6/Factory | Evolved 2 slots: Propulsion x1, Utility x1 6703 | -6/Factory | Identified exit to Factory 6748 | -6/Factory | Discovered new exit (range 9) 6751 | -6/Factory | Identified exit to Lower Caves 7109 | -6/Factory | Entered Lower Caves 7111 | -6/Lower Caves | Encountered a Warlord checkpoint 7190 | -6/Lower Caves | Discovered new exit (range 10) 7191 | -6/Lower Caves | Identified exit to Lower Caves 7240 | -6/Lower Caves | Entered another Lower Caves area 7254 | -6/Lower Caves | Learned Factory terminal intel 7444 | -6/Lower Caves | Found Prototype Device 7444 | -6/Lower Caves | Identified Heart of Steel 7502 | -6/Lower Caves | Discovered new exit (range 6) 7503 | -6/Lower Caves | Identified exit to Data Miner 7511 | -6/Lower Caves | Learned location of Extension (-5) 7511 | -6/Lower Caves | Learned Extension trap positions 7511 | -6/Lower Caves | Learned Factory emergency access door positions 7511 | -6/Lower Caves | Learned Factory security intel 7522 | -6/Lower Caves | Entered Data Miner 7522 | -6/Data Miner | Discovered new exit (range 6) 7526 | -6/Data Miner | Identified exit to Proximity Caves 7528 | -6/Data Miner | Met Data Miner 7533 | -6/Data Miner | Learned location of Section 7 (-2) 7533 | -6/Data Miner | Acquired the access code to Warlord's prototype stash 7535 | -6/Data Miner | Received God Mode back door access code from Data Miner 7560 | -6/Data Miner | Entered Proximity Caves 7570 | -5/Proximity Caves | Learned Factory security intel 7618 | -5/Proximity Caves | Escorted by Enhanced Grunt 7677 | -5/Proximity Caves | Spotted B-75 Beast 7681 | -5/Proximity Caves | Discovered exit to Factory (range 5) 7683 | -5/Proximity Caves | Entered Factory 7683 | -5/Factory | Evolved 2 slots: Utility x2 7684 | -5/Factory | Identified exit to Extension 7687 | -5/Factory | Loaded intel: 27 terminal locations 7700 | -5/Factory | Identified exit to Upper Caves 7867 | -5/Factory | Discovered new exit (range 8) 7873 | -5/Factory | Identified exit to Factory 8093 | -5/Factory | Entered Upper Caves 8143 | -5/Upper Caves | Build established: Hacker-Ninja 8236 | -5/Upper Caves | Discovered new exit (range 15) 8238 | -5/Upper Caves | Identified exit to Upper Caves 8239 | -5/Upper Caves | Entered another Upper Caves area 8274 | -5/Upper Caves | Encountered a Warlord checkpoint 8282 | -5/Upper Caves | Learned Factory emergency access door positions 8311 | -5/Upper Caves | Discovered new exit (range 5) 8311 | -5/Upper Caves | Identified exit to Zhirov 8358 | -5/Upper Caves | Entered Zhirov 8358 | -5/Zhirov | Discovered new exit (range 3) 8363 | -5/Zhirov | Met Zhirov 8376 | -5/Zhirov | Learned location of Quarantine (-2) 8376 | -5/Zhirov | Learned location of Command (-1) 8380 | -5/Zhirov | Zhirov requested help retrieving the SGEMP Prototype 8421 | -5/Zhirov | Found Alien Artifact 8437 | -5/Zhirov | Identified Integrated Dissipator 8437 | -5/Zhirov | Installed Integrated Dissipator, increased core heat dissipation (+20) 8439 | -5/Zhirov | Found Alien Artifact 8701 | -5/Zhirov | Identified exit to Proximity Caves 8722 | -5/Zhirov | Entered Proximity Caves 8850 | -4/Proximity Caves | Learned Research emergency access door positions 8868 | -4/Proximity Caves | Attracted the attention of an 0b10 checkpoint 8906 | -4/Proximity Caves | Discovered exit to Factory (range 11) 8921 | -4/Proximity Caves | Entered Factory 8921 | -4/Factory | Evolved 2 slots: Power x1, Propulsion x1 8985 | -4/Factory | Identified exit to Upper Caves 8985 | -4/Factory | Identified exit to Armory 9120 | -4/Factory | Entered Upper Caves 9212 | -4/Upper Caves | Discovered new exit (range 8) 9213 | -4/Upper Caves | Identified exit to Upper Caves 9255 | -4/Upper Caves | Entered another Upper Caves area 9259 | -4/Upper Caves | Encountered a Warlord checkpoint 9270 | -4/Upper Caves | Learned Research emergency access door positions 9338 | -4/Upper Caves | Discovered new exit (range 8) 9339 | -4/Upper Caves | Identified exit to Warlord 9339 | -4/Upper Caves | Entered Warlord 9366 | -4/Warlord | Visited the Vortex Lab 9367 | -4/Warlord | Met EX-DEC 9368 | -4/Warlord | Found Prototype Energy Gun 9369 | -4/Warlord | Identified Vortex Shotgun 9371 | -4/Warlord | Found Prototype Energy Cannon 9371 | -4/Warlord | Identified Vortex Cannon 9389 | -4/Warlord | Warlord's base attacked by MAIN.C 9393 | -4/Warlord | Met Warlord 9395 | -4/Warlord | Opened Warlord's prototype stash 9397 | -4/Warlord | Found Prototype Reactor 9397 | -4/Warlord | Identified Vortex Chain Reactor 9411 | -4/Warlord | Found Prototype Hackware 9413 | -4/Warlord | Found Prototype Device 9413 | -4/Warlord | Identified Thermal Barrier 9415 | -4/Warlord | Found Prototype Processor 9415 | -4/Warlord | Identified Exp. Core Analyzer 9418 | -4/Warlord | Found Prototype Processor 9418 | -4/Warlord | Identified Exp. Targeting Computer 9477 | -4/Warlord | Learned Quarantine security intel 9477 | -4/Warlord | Learned 4 Research zone layouts 9477 | -4/Warlord | Learned Armory emergency access door positions 9477 | -4/Warlord | Learned Quarantine emergency access door positions 9718 | -4/Warlord | Spotted Striker 9719 | -4/Warlord | Spotted Striker 9728 | -4/Warlord | Spotted Executioner 9739 | -4/Warlord | Warlord forces counterattacked 9749 | -4/Warlord | Build established: Hacker-Scout 9871 | -4/Warlord | Opened side exit 9933 | -4/Warlord | Discovered new exit (range 10) 9935 | -4/Warlord | Identified exit to Proximity Caves 9956 | -4/Warlord | Entered Proximity Caves 9956 | -3/Proximity Caves | Accompanied by 2 allies 10091 | -3/Proximity Caves | Discovered new exit (range 14) 10094 | -3/Proximity Caves | Identified exit to Research 10099 | -3/Proximity Caves | Entered Research 10099 | -3/Research | Evolved 2 slots: Utility x2 10099 | -3/Research | Identified System Mapper 10100 | -3/Research | Identified exit to Testing 10166 | -3/Research | Found Hellfire Missile Launcher 10346 | -3/Research | Crushed by falling debris 10349 | -3/Research | Search patrols dispatched 10355 | -3/Research | Entered Testing 10395 | -3/Testing | Scanned by Researcher 10405 | -3/Testing | Spotted PY-D3EPSGBEK7 10465 | -3/Testing | Found Nanosword 10491 | -3/Testing | Found Prototype Energy Cannon 10538 | -3/Testing | Incoming investigation squad redirected 10546 | -3/Testing | System corruption reached 10% 10559 | -3/Testing | Lost 3 parts (2n1u) 10565 | -3/Testing | Found Nanosword 10579 | -3/Testing | Identified Null Cannon 10584 | -3/Testing | Spotted Alpha 7 10605 | -3/Testing | Search patrols dispatched 10611 | -3/Testing | Spotted PG-YYZXBQ5XYT 10616 | -3/Testing | Rewired PG-YYZXBQ5XYT 10646 | -3/Testing | Discovered new exit (range 12) 10649 | -3/Testing | Identified exit to Research 10669 | -3/Testing | Entered Research 10669 | -2/Research | Warlord forces began assault on 0b10 10669 | -2/Research | Evolved 2 slots: Propulsion x1, Utility x1 10670 | -2/Research | Identified exit to Access 10779 | -2/Research | Research machine network offline 11014 | -2/Research | Spotted Executioner 11014 | -2/Research | Spotted Executioner 11039 | -2/Research | Spotted Striker 11056 | -2/Research | Spotted Executioner 11067 | -2/Research | Destroyed 9 combat bots 11076 | -2/Research | Borebot progress halted 11102 | -2/Research | Build established: Wizard-Mutant 11103 | -2/Research | Destroyed Executioner 11180 | -2/Research | Spotted Executioner 11180 | -2/Research | Spotted Executioner 11203 | -2/Research | Destroyed Executioner 11209 | -2/Research | Destroyed Executioner 11259 | -2/Research | Found Exp. Core Analyzer 11404 | -2/Research | Spotted Striker 11469 | -2/Research | Spotted Striker 11470 | -2/Research | Spotted Executioner 11497 | -2/Research | Spotted B-90 Cyclops 11512 | -2/Research | Borebot progress halted 11549 | -2/Research | Spotted Striker 11850 | -2/Research | Discovered exit to Access (range 12) 11935 | -2/Research | Spotted Executioner 11937 | -2/Research | Spotted Striker 11982 | -2/Research | Spotted Executioner 11982 | -2/Research | Spotted Striker 11983 | -2/Research | Met up with Warlord 11985 | -2/Research | Warlord invited to help at Command 12004 | -2/Research | Lost 3 parts (2n1u) 12227 | -2/Research | Build established: Scavenger-Mutant 12229 | -2/Research | Spotted Striker 12245 | -2/Research | Spotted Striker 12475 | -2/Research | Spotted Executioner 12486 | -2/Research | Spotted Striker 12572 | -2/Research | Core integrity fell below 50% 12601 | -2/Research | Lost 20 parts (2p12n3u3w) 12616 | -2/Research | Core integrity fell below 20% 12626 | -2/Research | Discovered exit to Access (range 5) 12630 | -2/Research | Spotted Striker 12634 | -2/Research | Destroyed by Y-72 Warden with Railgun Last Messages --------------- 12569_ ANNOUNCEMENT: Unaware assault squad dispatched in southeast quadrant. 12570_ Vortex Cannon destroyed. 12570_ S-43 Plague destroyed. 12571_ Dropped Huge Storage Unit. 12572_ P-80 Master resets Striker, system corruption cleaned. 12572_ Dropped Nanosword. 12572_ Discarded Exp. Core Analyzer. 12573_ Dropped Fission Core. 12573_ P-80 Master resets Executioner, system corruption cleaned. 12599_ DUWY 58TYOWY3V&V&HLI4 12600_ Acquired Enh. Quantum Rifle. 12604_ System Mapper destroyed. 12605_ P-80 Master resets S-43 Plague, system corruption cleaned. 12606_ Penetrated by Slug. 12606_ Adv. Targeting Computer destroyed. 12606_ Slug penetrates Wall. 12617_ System corrupted: Heat flow error (+140). 12626_ EXIT=FOUND: ACCESS 12628_ Slug penetrates Wall. Map ----- +----------------------------------------------------+ | ????#+#??????????# #??????????????????? | | ????# #??????????# #??????????????????? | | ????# #?????????## ######?????????????? | | ??### ########### #?????????????? | | ??# ##+###????????? | | ??# #????????? | | ??# +????????? | | ??# #????????? | | ??# #?????????????? | | ??# ######### ! #?????????????? | | ??# T########## ###?????????????? | | ??# #!! # #???????????????? | | ??+ ##!! / #???????????????? | | ??# ##!! # #???????????????? | | ### ## # ######??????????? | | # ! < # #??????????? | | ####### ## / #??????????? | | ??????# ## # K +??????????? | | ??????# ## ######sp #??????????? | | ??????# ## ! #???##s ##?????????? | | ??????# ###########???# s #?????????? | | ??????# ?????????????# #?????????? | | ???????##?????????????# Y +?????????? | | ??????????????????????# #?????????? | | ??????????????????????# #?????????? | | ??????????????????????###@###?????????? | | ????????????????????????# #???????????? | | ????????????????????????# #???????????? | | ????????????????????????# #???????????? | | ??????????????+?????????# #???????????? | | ????????????????????????# #???????????? | | ????????????????????????# ???????????? | | ???????????????????????? ???????????? | | ???????????????????????? ???????????? | | ???????????????????????? ???????????? | | ???????????????????????? ???????????? | | ???????????????????????? ???????????? | | ???????????????????????? ???????????? | | ???????????????????????? ???????????? | | ???????????????????????? ???????????? | | ???????????????????????? ???????????? | | ??????????????????????????????????????? | | ??????????????????????????????????????? | | ??????????????????????????????????????? | | ??????????????????????????????????????? | | ??????????????????????????????????????? | | ??????????????????????????????????????? | | ??????????????????????????????????????? | | ??????????????????????????????????????? | | ??????????????????????????????????????? | +----------------------------------------------------+ Best States ------------- Heat Dissipation 69 Energy Generation 39 Energy Capacity 1040 Matter Stores 300 Matter Capacity 300 Sight Range 16 Robot Scan Range 16 Terrain Scan Density 10 ECM Strength 1 Jamming Range 14 Additional Mass Support 9 Armor Coverage 600 Core Shielding 30 Propulsion Shielding 66 Evasion (%) 67 Targeting Accuracy 8 Core Analysis 8 Recoil Reduction 8 Offensive Hacking 48 Defensive Hacking 14 Item Schematics ----------------- Combat Drone Bay | -6/Data Miner | Free Lgt. Regenerative Plating | -6/Data Miner | Free Cld. Nuclear Pulse Thruster | -6/Data Miner | Free Prc. Energy Filter | -6/Data Miner | Free Hvy. Gatling Laser | -6/Data Miner | Free Field Propulsion Array | -6/Data Miner | Free Imp. Phase Shifter | -6/Data Miner | Free Dual-blade Saw | -6/Data Miner | Free Adv. Heavy Treads | -6/Data Miner | Free Assault Drone Bay | -5/Zhirov | Free Exp. Heat Sink | -5/Zhirov | Free Exp. Optical Array | -5/Zhirov | Free Imp. Arc Thrower | -5/Zhirov | Free Robot Schematics ------------------ R-10 Processor | -6/Data Miner | Free L-41 Fighter | -6/Data Miner | Free G-50 Soldier | -6/Data Miner | Free Fabricated ------------ Nothing Alien Tech Used ----------------- Integrated Dissipator Achievements -------------- Error 47 Factory Defaults Challenges ------------ None Game ------ Seed PropulsionAssembledTerrabomb Manual? 0 Play Time 11:28:15 Cumulative 126.6 hours Start 2023.09.06 @ 20:58:38 End 2023.09.09 @ 16:01:37 Sessions 10 Manual Loads 0 Difficulty Rogue Special Mode None Game No. 85 Rogue 85 Adventurer 0 Explorer 0 Win Type - Total 2 Types 2/0/0/0/0/0/0/0/0 Lore% 46 Gallery% 42 Achievement% 42 Wizard Run 0 Options --------- ASCII 0 Keyboard 0 Movement Mouse Keybinds 0 Fullscreen 1 Font 18/SmallcapsGlow Map View 76x50 Tactical HUD 1 Map Filters NONE Filters NONE Steam X RUN: 111393d6-b5d7-46e0-a3f9-041e68cb626d